fUST/lending_fUST_20250929
["ID","MTS","AMOUNT","RATE_DAILY","PERIOD"]
[388411661,1759159854398,-504.82425161,0.0002377,2]
[388411662,1759159854438,-504.82425161,0.0002377,2]
[388411663,1759159854479,-504.82425161,0.0002377,2]
[388411664,1759159854521,-504.82425161,0.0002377,2]
[388411665,1759159854561,-504.82425161,0.0002377,2]
[388411666,1759159854601,-504.82425161,0.0002377,2]
[388411667,1759159854637,-120.28197424,0.00023771,2]
[388411668,1759159855077,1569.43,0.00023758,2]
[388411669,1759159861255,300.0,0.00028767,120]
[388411670,1759159861412,4980.69363821,0.00023401,2]
[388411672,1759159864370,-1399.69,0.00023758,2]
[388411673,1759159864408,-300.0,0.00023768,2]
[388411674,1759159864447,-500.0,0.00023769,2]
[388411675,1759159864485,-500.0,0.00023769,2]
[388411676,1759159864523,-500.0,0.00023769,2]
[388411677,1759159864562,-500.0,0.00023769,2]
[388411678,1759159864599,-500.0,0.00023769,2]
[388411679,1759159864636,-500.0,0.00023769,2]
[388411680,1759159864674,-100.63,0.00023769,2]
[388411681,1759159874171,-480.0,0.00023758,2]
[388411682,1759159874213,-399.37,0.00023769,2]
[388411683,1759159874255,-500.0,0.00023769,2]
[388411684,1759159874293,-500.0,0.00023769,2]
[388411685,1759159874335,-500.0,0.00023769,2]
[388411686,1759159874375,-500.0,0.00023769,2]
[388411687,1759159874415,-500.0,0.00023769,2]
[388411688,1759159874459,-500.0,0.00023769,2]
[388411689,1759159874497,-500.0,0.00023769,2]
[388411690,1759159874536,-500.0,0.00023769,2]
[388411691,1759159884211,-583.86,0.00023758,2]
[388411692,1759159884252,-3485.89,0.00023758,2]
[388411693,1759159894252,-1860.51,0.00023758,2]
[388411694,1759159894291,-1232.54,0.00023758,2]
[388411695,1759159894521,-1350.3,0.00023758,2]
[388411696,1759159894698,-1113.31,0.00023758,2]
[388411697,1759159894736,-500.0,0.00023769,2]
[388411698,1759159894779,-500.0,0.00023769,2]
[388411699,1759159894821,-634.92413971,0.00023769,2]
[388411700,1759159894861,-500.0,0.00023769,2]
[388411701,1759159894903,-500.0,0.00023769,2]
[388411702,1759159894945,-500.0,0.00023769,2]
[388411703,1759159894986,-300.0,0.00023769,2]
[388411704,1759159895027,-403.54172058,0.00023769,2]
[388411705,1759159905323,-528.08354936,0.00023758,2]
[388411706,1759159905362,-480.0,0.00023758,2]
[388411707,1759159905405,-96.45827942,0.00023769,2]
[388411708,1759159905446,-194.70345863,0.00023769,2]
[388411709,1759159905485,-500.0,0.00023769,2]
[388411710,1759159905522,-500.0,0.00023769,2]
[388411711,1759159905564,-500.0,0.00023769,2]
[388411712,1759159905602,-500.0,0.00023769,2]
[388411713,1759159905825,-500.0,0.00023769,2]
[388411714,1759159905873,-500.0,0.00023769,2]
[388411715,1759159905918,-500.0,0.00023769,2]
[388411716,1759159906314,-500.0,0.00023769,2]
[388411717,1759159906356,-500.0,0.00023769,2]
[388411718,1759159906407,-500.0,0.00023769,2]
[388411719,1759159906450,-500.0,0.00023769,2]
[388411720,1759159906492,-500.0,0.00023769,2]
[388411721,1759159906537,-500.0,0.00023769,2]
[388411722,1759159906579,-500.0,0.00023769,2]
[388411723,1759159906620,-500.0,0.00023769,2]
[388411724,1759159906662,-500.0,0.00023769,2]
[388411725,1759159906703,-500.0,0.00023769,2]
[388411726,1759159906855,-500.0,0.00023769,2]
[388411727,1759159906898,-500.0,0.00023769,2]
[388411728,1759159906942,-500.0,0.00023769,2]
[388411729,1759159906985,-500.0,0.00023769,2]
[388411730,1759159907029,-500.0,0.00023769,2]
[388411731,1759159907071,-500.0,0.00023769,2]
[388411732,1759159907112,-500.0,0.00023769,2]
[388411733,1759159907154,-629.15293502,0.00023769,2]
[388411734,1759159907196,-500.0,0.00023769,2]
[388411735,1759159907239,-241.70412996,0.00023769,2]
[388411736,1759159907649,-258.29587004,0.00023769,2]
[388411737,1759159907691,-500.0,0.00023769,2]
[388411738,1759159907732,-500.0,0.00023769,2]
[388411739,1759159907774,-500.0,0.00023769,2]
[388411740,1759159907817,-500.0,0.00023769,2]
[388411741,1759159907859,-500.0,0.00023769,2]
[388411742,1759159907901,-500.0,0.00023769,2]
[388411743,1759159907942,-500.0,0.00023769,2]
[388411744,1759159907981,-500.0,0.00023769,2]
[388411745,1759159908024,-500.0,0.00023769,2]
[388411746,1759159908185,-500.0,0.00023769,2]
[388411747,1759159908224,-394.4078344,0.00023769,2]
[388411748,1759159908263,-168.93651059,0.00023769,2]
[388411749,1759159908303,-504.82425161,0.0002377,2]
[388411750,1759159908341,-480.0,0.0002377,2]
[388411751,1759159908380,-637.16,0.0002377,2]
[388411752,1759159908421,-500.0,0.0002377,2]
[388411753,1759159908465,-500.0,0.0002377,2]
[388411754,1759159908511,-500.0,0.0002377,2]
[388411755,1759159908554,-480.0,0.0002377,2]
[388411756,1759159908599,-169.3528068,0.0002377,2]
[388411757,1759159914273,-330.6471932,0.0002377,2]
[388411758,1759159914318,-500.0,0.0002377,2]
[388411759,1759159914364,-500.0,0.0002377,2]
[388411760,1759159914412,-500.0,0.0002377,2]
[388411761,1759159914455,-500.0,0.0002377,2]
[388411762,1759159914498,-500.0,0.0002377,2]
[388411763,1759159914537,-500.0,0.0002377,2]
[388411764,1759159914579,-500.0,0.0002377,2]
[388411765,1759159914620,-500.0,0.0002377,2]
[388411766,1759159914662,-293.36328606,0.0002377,2]
[388411767,1759159914701,-271.98904148,0.0002377,2]
[388411768,1759159914873,-208.01095852,0.0002377,2]
[388411769,1759159914913,-225.90865451,0.0002377,2]
[388411770,1759159914952,-682.25802576,0.00023771,2]
[388411771,1759159914993,-1681.71,0.00023771,2]
[388411772,1759159915035,-500.0,0.00023771,2]
[388411773,1759159915077,-480.0,0.00023771,2]
[388411774,1759159915116,-480.0,0.00023771,2]
[388411775,1759159915154,-720.16,0.00023771,2]
[388411776,1759159915502,-480.0,0.00023772,2]
[388411777,1759159915541,-546.59,0.00023772,2]
[388411778,1759159915580,-660.75,0.00023772,2]
[388411779,1759159915617,-1335.23,0.00023772,2]
[388411780,1759159915654,-480.0,0.00023772,2]
[388411781,1759159915692,-480.0,0.00023772,2]
[388411782,1759159915730,-480.20872935,0.00023772,2]
[388411785,1759159924365,-764.59,0.00023758,2]
[388411786,1759159924407,-480.0,0.0002377,2]
[388411787,1759159924450,-625.4247069,0.00023771,3]
[388411788,1759159924490,-300.0,0.00023771,2]
[388411789,1759159924529,-2521.02,0.00023772,2]
[388411790,1759159924858,-3253.79,0.00023772,2]
[388411791,1759159924896,-480.0,0.00023772,2]
[388411792,1759159924937,-566.89362169,0.00023772,2]
[388411793,1759159924976,-477.24275662,0.00023772,2]
[388411794,1759159925338,-444.15724338,0.00023772,2]
[388411795,1759159925380,-480.0,0.00023772,2]
[388411796,1759159925421,-480.4966852,0.00023772,2]
[388411797,1759159925461,-480.0,0.00023772,2]
[388411798,1759159925500,-514.18,0.00023772,2]
[388411799,1759159925540,-480.0,0.00023772,2]
[388411800,1759159925578,-503.01,0.00023772,2]
[388411801,1759159925616,-744.63,0.00023772,2]
[388411802,1759159925654,-480.0,0.00023872,2]
[388411803,1759159925694,-307.06214284,0.00023872,2]
[388411804,1759159925914,-172.93785716,0.00023872,2]
[388411805,1759159925953,-480.0,0.00023872,2]
[388411807,1759159925992,-500.72,0.00023872,2]
[388411808,1759159926032,-480.0,0.00023872,2]
[388411809,1759159926070,-1098.89,0.00023872,2]
[388411810,1759159926109,-480.0,0.00023872,2]
[388411811,1759159926147,-604.03,0.00023872,2]
[388411812,1759159926184,-493.62576537,0.00023872,2]
[388411813,1759159926222,-592.48,0.00023872,2]
[388411818,1759159934267,300.0,0.000234,2]
[388411819,1759159934366,-4427.0,0.00023758,2]
[388411820,1759159934512,-1146.01,0.00023758,2]
[388411821,1759159934556,-500.0,0.00023769,2]
[388411822,1759159934600,-378.47786897,0.00023769,2]
[388411823,1759159934636,-480.0,0.0002377,2]
[388411824,1759159934675,-1749.07,0.00023772,2]
[388411825,1759159934715,-497.24,0.00023872,2]
[388411826,1759159934894,-667.33,0.00023872,2]
[388411827,1759159934935,-480.0,0.00023872,2]
[388411828,1759159934976,-493.16,0.00023872,2]
[388411829,1759159935019,-611.62,0.00023872,2]
[388411830,1759159935064,-491.46,0.00023872,2]
[388411831,1759159935105,-480.0,0.00023872,2]
[388411832,1759159935147,-480.0,0.00023872,2]
[388411833,1759159935186,-480.0,0.00023872,2]
[388411834,1759159935225,-480.0,0.00023872,2]
[388411835,1759159935265,-192.87,0.00023872,2]
[388411836,1759159935501,-287.13,0.00023872,2]
[388411837,1759159935538,-480.0,0.00023872,2]
[388411838,1759159935578,-480.0,0.00023872,2]
[388411839,1759159935615,-583.85092848,0.00023872,2]
[388411840,1759159935652,-480.0,0.00023872,2]
[388411841,1759159935691,-480.0,0.00023872,2]
[388411842,1759159935729,-480.0,0.00023872,2]
[388411843,1759159935766,-155.95996062,0.00023872,2]
[388411844,1759159935807,-480.0,0.00023872,2]
[388411845,1759159935845,-480.0,0.00023872,2]
[388411846,1759159935885,-480.0,0.00023872,2]
[388411847,1759159936577,300.0,0.000234,2]
[388411850,1759159940420,7006.0278272,0.00023,2]
[388411851,1759159946445,300.0,0.000234,2]
[388411852,1759159947848,300.0,0.000234,2]
[388411853,1759159954337,-2635.91,0.00023758,2]
[388411854,1759159954375,-1053.73,0.00023758,2]
[388411855,1759159954417,-675.6,0.00023758,2]
[388411856,1759159954602,-2949.69,0.00023758,2]
[388411857,1759159954639,-480.0,0.0002377,2]
[388411858,1759159954676,-158.13605815,0.0002377,2]
[388411859,1759159954715,-480.0,0.0002377,2]
[388411860,1759159954753,-480.0,0.00023772,2]
[388411861,1759159957455,300.0,0.000234,2]
[388411862,1759159959407,300.0,0.000234,2]
[388411863,1759159964365,-704.16,0.0002377,2]
[388411864,1759159964403,-2244.25,0.00023771,2]
[388411865,1759159964443,-1145.59,0.00023772,2]
[388411866,1759159964480,-766.11,0.00023772,2]
[388411867,1759159969037,300.0,0.000234,2]
[388411868,1759159970590,300.0,0.000234,2]
[388411869,1759159974406,-480.0,0.0002377,2]
[388411870,1759159974445,-680.8,0.00023771,2]
[388411871,1759159974484,-1287.42,0.00023772,2]
[388411872,1759159974522,-480.0,0.00023772,2]
[388411873,1759159974561,-594.93,0.00023772,2]
[388411874,1759159974600,-159.99022613,0.00023772,2]
[388411875,1759159974640,-300.0,0.000238,2]
[388411876,1759159974678,-300.0,0.000238,2]
[388411877,1759159974718,-300.0,0.000238,2]
[388411878,1759159974758,-353.72954774,0.00023872,2]
[388411879,1759159974940,-126.27045226,0.00023872,2]
[388411880,1759159974981,-700.01,0.00023872,2]
[388411881,1759159975028,-480.0,0.00023872,2]
[388411882,1759159975069,-480.0,0.00023872,2]
[388411883,1759159975110,-483.4339518,0.00023872,2]
[388411884,1759159975149,-1200.0,0.00023872,2]
[388411885,1759159975189,-532.77,0.00023872,2]
[388411886,1759159975228,-480.0,0.00023872,2]
[388411887,1759159975267,-480.0,0.00023872,2]
[388411888,1759159984444,-3569.67,0.00023758,2]
[388411889,1759159994462,-2860.67,0.00023758,2]
[388411890,1759159994499,-171.81818016,0.00023758,2]
[388411891,1759159994538,-500.0,0.00023769,2]
[388411892,1759159994573,-500.0,0.00023769,2]
[388411893,1759159994607,-500.0,0.00023769,2]
[388411894,1759159994650,-435.03363968,0.00023769,2]
[388411895,1759159994836,-64.96636032,0.00023769,2]
[388411896,1759159994878,-500.0,0.00023769,2]
[388411897,1759159994919,-500.0,0.00023769,2]
[388411898,1759159994960,-398.98985421,0.00023769,2]
[388411899,1759159995000,-480.0,0.0002377,2]
[388411900,1759159995039,-480.0,0.00023772,2]
[388411901,1759159995078,-2509.81,0.00023772,2]
[388411902,1759159996573,-376.38122859,0.00023658,2]
[388411905,1759160105895,5000.0,0.00023658,2]
[388411906,1759160126158,398.5073373,0.0002,3]
[388411907,1759160141748,1000.0,0.00028767,120]
[388411908,1759160157312,184.1007185,0.00023,14]
[388411910,1759160160750,628.832054,0.00022768,2]
[388411912,1759160206479,666.0,0.00022766,2]
[388411916,1759160280858,195.07,0.0001812,2]
[388411917,1759160281200,195.07,0.0001812,2]
[388411918,1759160281549,195.06,0.0001812,2]
[388411921,1759160310358,-88.047804,0.00023658,2]
[388411922,1759160310396,-4068.26,0.000237,2]
[388411923,1759160310433,-75.754392,0.00023758,2]
[388411924,1759160310889,-1535.885608,0.00023758,2]
[388411925,1759160310926,-300.0,0.00023767,2]
[388411926,1759160310963,-1200.0,0.00023768,2]
[388411927,1759160311003,-1200.0,0.00023768,2]
[388411928,1759160311041,-300.0,0.00023769,2]
[388411929,1759160311080,-300.0,0.00023769,2]
[388411930,1759160311118,-28.238784,0.00023769,2]
[388411931,1759160311370,-271.761216,0.00023769,2]
[388411932,1759160311416,-300.0,0.00023769,2]
[388411933,1759160311451,-668.56,0.0002377,2]
[388411934,1759160311485,-684.38,0.0002377,2]
[388411935,1759160311522,-738.48,0.0002377,2]
[388411936,1759160311564,-480.0,0.0002377,2]
[388411937,1759160311605,-1453.927568,0.0002377,2]
[388411938,1759160311783,-805.792432,0.0002377,2]
[388411939,1759160311820,-632.02,0.0002377,2]
[388411940,1759160311859,-480.0,0.0002377,2]
[388411941,1759160311897,-633.86,0.0002377,2]
[388411942,1759160311934,-500.0,0.0002377,2]
[388411943,1759160312159,-500.0,0.0002377,2]
[388411944,1759160312199,-500.0,0.0002377,2]
[388411945,1759160312241,-500.0,0.0002377,2]
[388411946,1759160312284,-396.665136,0.0002377,2]
[388411947,1759160312339,-103.334864,0.0002377,2]
[388411948,1759160312379,-500.0,0.0002377,2]
[388411949,1759160312417,-313.36058957,0.0002377,2]
[388411950,1759160312454,-500.0,0.0002377,2]
[388411951,1759160312496,-500.0,0.0002377,2]
[388411952,1759160312537,-500.0,0.0002377,2]
[388411953,1759160312579,-500.0,0.0002377,2]
[388411954,1759160312619,-500.0,0.0002377,2]
[388411955,1759160312655,-500.0,0.0002377,2]
[388411956,1759160312693,-500.0,0.0002377,2]
[388411957,1759160312730,-216.51642614,0.0002377,2]
[388411958,1759160312768,-233.58624058,0.0002377,2]
[388411959,1759160312933,-266.41375942,0.0002377,2]
[388411960,1759160312973,-500.0,0.0002377,2]
[388411961,1759160313020,-500.0,0.0002377,2]
[388411962,1759160313059,-500.0,0.0002377,2]
[388411963,1759160313100,-500.0,0.0002377,2]
[388411964,1759160313141,-500.0,0.0002377,2]
[388411965,1759160313182,-500.0,0.0002377,2]
[388411966,1759160313224,-500.0,0.0002377,2]
[388411967,1759160313264,-500.0,0.0002377,2]
[388411968,1759160313304,-500.0,0.0002377,2]
[388411969,1759160313852,-271.02822492,0.00023769,2]
[388411970,1759160313892,-337.12355531,0.00023769,2]
[388411971,1759160313932,-500.0,0.00023769,2]
[388411972,1759160313973,-500.0,0.00023769,2]
[388411973,1759160314013,-500.0,0.0002377,2]
[388411974,1759160314054,-500.0,0.0002377,2]
[388411975,1759160314103,-500.0,0.0002377,2]
[388411976,1759160314144,-500.0,0.0002377,2]
[388411977,1759160314184,-500.0,0.0002377,2]
[388411978,1759160314222,-500.0,0.0002377,2]
[388411979,1759160314262,-283.70643954,0.0002377,2]
[388411980,1759160314962,-500.0,0.00023769,2]
[388411981,1759160315005,-500.0,0.00023769,2]
[388411982,1759160315045,-758.06,0.0002377,2]
[388411983,1759160315084,-480.0,0.0002377,2]
[388411984,1759160315124,-1049.28,0.0002377,2]
[388411985,1759160315485,-3425.33,0.0002377,2]
[388411986,1759160315523,-480.0,0.0002377,2]
[388411987,1759160315562,-480.0,0.0002377,2]
[388411988,1759160315600,-508.87,0.0002377,2]
[388411989,1759160315674,-480.0,0.0002377,2]
[388411990,1759160315714,-1642.43,0.0002377,2]
[388411991,1759160315753,-480.0,0.0002377,2]
[388411992,1759160319317,286.921744,0.00022788,2]
[388411993,1759160320204,-500.0,0.00023769,2]
[388411994,1759160320260,-500.0,0.00023769,2]
[388411995,1759160320311,-500.0,0.00023769,2]
[388411996,1759160320359,-500.0,0.00023769,2]
[388411997,1759160320409,-500.0,0.00023769,2]
[388411998,1759160320458,-500.0,0.00023769,2]
[388411999,1759160320506,-500.0,0.00023769,2]
[388412000,1759160321042,-5569.28678976,0.0002377,2]
[388412001,1759160321159,-10000.01,0.0002377,2]
[388412002,1759160321220,-10000.01,0.0002377,2]
[388412003,1759160321265,-10000.01,0.0002377,2]
[388412004,1759160327294,17030.13942096,0.00023,2]
[388412006,1759160360295,-300.0,0.00023768,2]
[388412007,1759160360335,-500.0,0.00023769,2]
[388412008,1759160360377,-257.04006551,0.00023769,2]
[388412009,1759160360420,-500.0,0.00023769,2]
[388412010,1759160360465,-500.0,0.00023769,2]
[388412011,1759160360504,-500.0,0.00023769,2]
[388412012,1759160360544,-500.0,0.00023769,2]
[388412013,1759160360583,-500.0,0.00023769,2]
[388412014,1759160360630,-500.0,0.00023769,2]
[388412015,1759160360670,-500.0,0.00023769,2]
[388412016,1759160360710,-385.92986898,0.00023769,2]
[388412017,1759160360840,-114.07013102,0.00023769,2]
[388412018,1759160360879,-500.0,0.00023769,2]
[388412019,1759160360925,-500.0,0.00023769,2]
[388412020,1759160360965,-500.0,0.00023769,2]
[388412021,1759160361007,-500.0,0.00023769,2]
[388412022,1759160361049,-349.35627549,0.00023769,2]
[388412023,1759160361090,-500.0,0.00023769,2]
[388412024,1759160361132,-354.80785113,0.00023769,2]
[388412025,1759160361173,-500.0,0.00023769,2]
[388412026,1759160361212,-359.39391194,0.00023769,2]
[388412027,1759160361251,-500.0,0.00023769,2]
[388412028,1759160361291,-271.65164262,0.00023769,2]
[388412029,1759160361486,-500.0,0.00023769,2]
[388412030,1759160361525,-500.0,0.00023769,2]
[388412031,1759160361563,-500.0,0.00023769,2]
[388412032,1759160361603,-500.0,0.00023769,2]
[388412033,1759160361645,-500.0,0.00023769,2]
[388412034,1759160361686,-500.0,0.00023769,2]
[388412035,1759160361727,-500.0,0.00023769,2]
[388412036,1759160361770,-500.0,0.00023769,2]
[388412037,1759160361813,-500.0,0.00023769,2]
[388412038,1759160361856,-500.0,0.00023769,2]
[388412039,1759160362153,-500.0,0.00023769,2]
[388412040,1759160362192,-500.0,0.00023769,2]
[388412041,1759160362231,-500.0,0.00023769,2]
[388412042,1759160362271,-500.0,0.00023769,2]
[388412043,1759160362310,-500.0,0.00023769,2]
[388412044,1759160362349,-500.0,0.00023769,2]
[388412045,1759160362390,-500.0,0.00023769,2]
[388412046,1759160362431,-500.0,0.00023769,2]
[388412047,1759160362469,-500.0,0.00023769,2]
[388412048,1759160362716,-500.0,0.00023769,2]
[388412049,1759160362871,-500.0,0.00023769,2]
[388412050,1759160362913,-500.0,0.00023769,2]
[388412051,1759160362952,-500.0,0.00023769,2]
[388412052,1759160362990,-500.0,0.00023769,2]
[388412053,1759160363031,-500.0,0.00023769,2]
[388412054,1759160363075,-500.0,0.00023769,2]
[388412055,1759160363116,-500.0,0.00023769,2]
[388412056,1759160363159,-500.0,0.00023769,2]
[388412057,1759160363199,-500.0,0.00023769,2]
[388412058,1759160363240,-500.0,0.00023769,2]
[388412059,1759160364992,-238.39599383,0.00023769,2]
[388412060,1759160365017,-0.01,0.00023769,2]
[388412061,1759160370766,-999.25501916,0.00023669,2]
[388412062,1759160370807,-261.59400617,0.00023769,2]
[388412063,1759160370847,-500.0,0.00023769,2]
[388412064,1759160370888,-500.0,0.00023769,2]
[388412065,1759160370930,-500.0,0.00023769,2]
[388412066,1759160370969,-500.0,0.00023769,2]
[388412067,1759160371011,-500.0,0.00023769,2]
[388412068,1759160371053,-500.0,0.00023769,2]
[388412069,1759160371092,-500.0,0.00023769,2]
[388412070,1759160371155,-500.0,0.00023769,2]
[388412071,1759160371201,-500.0,0.00023769,2]
[388412072,1759160371240,-500.0,0.00023769,2]
[388412073,1759160371280,-500.0,0.00023769,2]
[388412074,1759160371317,-500.0,0.00023769,2]
[388412075,1759160371354,-500.0,0.00023769,2]
[388412076,1759160371391,-500.0,0.00023769,2]
[388412077,1759160371428,-500.0,0.00023769,2]
[388412078,1759160371462,-500.0,0.00023769,2]
[388412079,1759160371497,-500.0,0.00023769,2]
[388412080,1759160371603,-500.0,0.00023769,2]
[388412081,1759160371643,-500.0,0.00023769,2]
[388412082,1759160371685,-500.0,0.00023769,2]
[388412083,1759160371723,-500.0,0.00023769,2]
[388412084,1759160371761,-500.0,0.00023769,2]
[388412085,1759160371802,-158.5799482,0.00023769,2]
[388412086,1759160371843,-645.68259565,0.00023769,2]
[388412087,1759160371882,-500.0,0.00023769,2]
[388412088,1759160371922,-500.0,0.00023769,2]
[388412089,1759160371963,-500.0,0.00023769,2]
[388412090,1759160372167,-500.0,0.00023769,2]
[388412091,1759160372207,-500.0,0.00023769,2]
[388412092,1759160372245,-500.0,0.00023769,2]
[388412093,1759160372282,-500.0,0.00023769,2]
[388412094,1759160372320,-500.0,0.00023769,2]
[388412095,1759160372358,-500.0,0.00023769,2]
[388412096,1759160372402,-500.0,0.00023769,2]
[388412097,1759160372442,-500.0,0.00023769,2]
[388412098,1759160372479,-310.65101401,0.00023769,2]
[388412099,1759160372518,-500.0,0.00023769,2]
[388412100,1759160372705,-500.0,0.00023769,2]
[388412101,1759160372748,-500.0,0.00023769,2]
[388412102,1759160372792,-500.0,0.00023769,2]
[388412103,1759160372832,-500.0,0.00023769,2]
[388412104,1759160372873,-500.0,0.00023769,2]
[388412105,1759160372915,-500.0,0.00023769,2]
[388412106,1759160372956,-500.0,0.00023769,2]
[388412107,1759160372998,-500.0,0.00023769,2]
[388412108,1759160373040,-500.0,0.00023769,2]
[388412109,1759160373083,-500.0,0.00023769,2]
[388412110,1759160373347,-500.0,0.00023769,2]
[388412111,1759160373391,-500.0,0.00023769,2]
[388412112,1759160373436,-500.0,0.00023769,2]
[388412113,1759160373477,-500.0,0.00023769,2]
[388412114,1759160373518,-500.0,0.00023769,2]
[388412115,1759160373559,-500.0,0.00023769,2]
[388412116,1759160373602,-500.0,0.00023769,2]
[388412117,1759160373642,-500.0,0.00023769,2]
[388412118,1759160373688,-500.0,0.00023769,2]
[388412119,1759160373729,-500.0,0.00023769,2]
[388412120,1759160374109,-500.0,0.00023769,2]
[388412121,1759160374148,-500.0,0.00023769,2]
[388412122,1759160374188,-500.0,0.00023769,2]
[388412123,1759160374229,-500.0,0.00023769,2]
[388412124,1759160374270,-500.0,0.00023769,2]
[388412125,1759160374311,-500.0,0.00023769,2]
[388412126,1759160374350,-480.0,0.0002377,2]
[388412127,1759160374388,-1279.6,0.0002377,2]
[388412128,1759160376322,-1279.6,0.0002377,2]
[388412129,1759160376351,-480.81,0.0002377,2]
[388412130,1759160380229,-10000.01,0.00023769,2]
[388412131,1759160380408,-10000.01,0.00023769,2]
[388412132,1759160380584,-10000.01,0.00023769,2]
[388412133,1759160380728,-10000.01,0.00023769,2]
[388412134,1759160382974,-407.72994612,0.00023769,2]
[388412135,1759160383011,-9184.55010776,0.00023769,2]
[388412136,1759160383170,-655.57,0.0002377,2]
[388412137,1759160383209,-480.0,0.0002377,2]
[388412138,1759160383245,-480.0,0.0002377,2]
[388412139,1759160383283,-480.0,0.0002377,2]
[388412140,1759160383320,-480.0,0.0002377,2]
[388412141,1759160383356,-492.75,0.0002377,2]
[388412142,1759160383393,-480.0,0.0002377,2]
[388412143,1759160383431,-757.67,0.0002377,2]
[388412144,1759160383470,-625.76,0.00023771,2]
[388412145,1759160383807,-136.51,0.00023771,2]
[388412146,1759160390304,-573.79,0.0002377,2]
[388412147,1759160390352,-671.59,0.00023771,2]
[388412148,1759160390398,-480.0,0.00023771,2]
[388412149,1759160390442,-723.52,0.00023771,2]
[388412150,1759160390485,-1403.69,0.00023771,2]
[388412151,1759160390532,-480.0,0.00023771,2]
[388412152,1759160390577,-646.62,0.00023771,2]
[388412153,1759160390718,-717.08,0.00023771,2]
[388412154,1759160390768,-480.0,0.00023771,2]
[388412155,1759160390814,-480.0,0.00023771,2]
[388412156,1759160390856,-480.0,0.00023771,2]
[388412157,1759160390900,-840.71,0.00023771,2]
[388412158,1759160390945,-1908.73,0.00023771,2]
[388412159,1759160391168,-186.97,0.00023771,2]
[388412160,1759160391212,-480.0,0.00023771,2]
[388412161,1759160391256,-480.0,0.00023771,2]
[388412162,1759160391297,-830.5,0.00023771,2]
[388412163,1759160391341,-1124.32,0.00023771,2]
[388412164,1759160391384,-1493.39,0.00023771,2]
[388412165,1759160392194,-809.65,0.00023771,2]
[388412166,1759160392233,-511.4,0.00023771,2]
[388412167,1759160392273,-480.0,0.00023771,2]
[388412168,1759160392313,-1248.94,0.00023771,2]
[388412169,1759160392920,-480.0,0.0002377,2]
[388412170,1759160392930,-3900.03,0.00023771,2]
[388412171,1759160392939,-538.08,0.00023771,2]
[388412172,1759160392949,-41.88,0.00023771,2]
[388412173,1759160393940,4960.9077005,0.00023401,2]
[388412175,1759160402160,5000.0,0.00023401,2]
[388412176,1759160403415,152.0,0.000235,2]
[388412177,1759160406279,-152.0,0.000235,2]
[388412178,1759160408672,5000.0,0.00023,3]
[388412181,1759160410065,5000.0,0.00023401,2]
[388412182,1759160410598,-234.52560761,0.000235,2]
[388412183,1759160417952,376.38122859,0.000235,2]